[Event "Titled Tuesday Blitz July 4 Early 2023"]
[White "Mickiewicz, Piotr"]
[Black "Fisher_TheGalactic"]
[WhiteFideId "1114891"]
[WhiteElo "2430"]
[BlackElo "2611"]
[Result "0-1"]
[Round "3"]
[TimeControl "180+2"]
[Date "2023.07.04"]
[WhiteClock "0:00:00"]
[BlackClock "0:00:03"]
[Board "118"]

1. Nf3 {[%clk 0:03:00]}  b6 {[%clk 0:03:00]} 2. g3 {[%clk 0:03:00]}  Bb7 {[%clk 0:03:01]} 3. Bg2 {[%clk 0:03:00]}  d5 {[%clk 0:03:00]} 4. O-O {[%clk 0:03:01]}  e6 {[%clk 0:02:59]} 5. d3 {[%clk 0:03:01]}  Nf6 {[%clk 0:02:59]} 6. Nbd2 {[%clk 0:03:01]}  Be7 {[%clk 0:02:58]} 7. e4 {[%clk 0:03:01]}  O-O {[%clk 0:02:58]} 8. Re1 {[%clk 0:03:00]}  c5 {[%clk 0:02:58]} 9. e5 {[%clk 0:02:53]}  Nfd7 {[%clk 0:02:57]} 10. Nf1 {[%clk 0:02:54]}  Nc6 {[%clk 0:02:58]} 11. Bf4 {[%clk 0:02:52]}  b5 {[%clk 0:02:54]} 12. h4 {[%clk 0:02:51]}  c4 {[%clk 0:02:50]} 13. d4 {[%clk 0:02:50]}  b4 {[%clk 0:02:49]} 14. N1h2 {[%clk 0:02:42]}  a5 {[%clk 0:02:44]} 15. h5 {[%clk 0:02:39]}  a4 {[%clk 0:02:40]} 16. Ng4 {[%clk 0:02:38]}  c3 {[%clk 0:02:29]} 17. bxc3 {[%clk 0:02:36]}  bxc3 {[%clk 0:02:29]} 18. Qc1 {[%clk 0:02:24]}  Ba6 {[%clk 0:02:14]} 19. a3 {[%clk 0:02:22]}  Rb8 {[%clk 0:02:13]} 20. h6 {[%clk 0:02:17]}  g6 {[%clk 0:02:13]} 21. Bg5 {[%clk 0:02:12]}  Rb2 {[%clk 0:02:12]} 22. Bxe7 {[%clk 0:02:00]}  Qxe7 {[%clk 0:02:13]} 23. Re3 {[%clk 0:01:57]}  f5 {[%clk 0:01:50]} 24. exf6 {[%clk 0:01:56]}  Nxf6 {[%clk 0:01:50]} 25. Rxc3 {[%clk 0:01:37]}  Rb6 {[%clk 0:01:39]} 26. Nge5 {[%clk 0:01:23]}  Nxe5 {[%clk 0:01:36]} 27. Nxe5 {[%clk 0:01:24]}  Ne4 {[%clk 0:01:36]} 28. Rf3 {[%clk 0:01:23]}  Rxf3 {[%clk 0:01:19]} 29. Bxf3 {[%clk 0:01:22]}  Ng5 {[%clk 0:01:15]} 30. Bg2 {[%clk 0:01:17]}  Nf7 {[%clk 0:01:10]} 31. Qf4 {[%clk 0:01:13]}  Nd6 {[%clk 0:00:56]} 32. Re1 {[%clk 0:01:11]}  Bb7 {[%clk 0:00:26]} 33. Re3 {[%clk 0:00:52]}  Nf5 {[%clk 0:00:23]} 34. Rc3 {[%clk 0:00:51]}  g5 {[%clk 0:00:15]} 35. Qg4 {[%clk 0:00:37]}  Nxh6 {[%clk 0:00:14]} 36. Qh5 {[%clk 0:00:37]}  Nf5 {[%clk 0:00:12]} 37. Nf3 {[%clk 0:00:30]}  h6 {[%clk 0:00:08]} 38. Bh3 {[%clk 0:00:22]}  Qf7 {[%clk 0:00:06]} 39. Qxf7+ {[%clk 0:00:21]}  Kxf7 {[%clk 0:00:07]} 40. Bxf5 {[%clk 0:00:21]}  exf5 {[%clk 0:00:08]} 41. Rc7+ {[%clk 0:00:21]}  Ke8 {[%clk 0:00:03]} 42. Ne5 {[%clk 0:00:22]}  Ba6 {[%clk 0:00:03]} 43. Ra7 {[%clk 0:00:19]}  Bb5 {[%clk 0:00:03]} 44. f4 {[%clk 0:00:19]}  gxf4 {[%clk 0:00:03]} 45. gxf4 {[%clk 0:00:20]}  h5 {[%clk 0:00:03]} 46. Kf2 {[%clk 0:00:20]}  Rh6 {[%clk 0:00:03]} 47. Rb7 {[%clk 0:00:17]}  Ba6 {[%clk 0:00:03]} 48. Rb8+ {[%clk 0:00:16]}  Ke7 {[%clk 0:00:02]} 49. Ra8 {[%clk 0:00:13]}  h4 {[%clk 0:00:03]} 50. Nf3 {[%clk 0:00:10]}  h3 {[%clk 0:00:03]} 51. Kg3 {[%clk 0:00:11]}  Bf1 {[%clk 0:00:03]} 52. Nh2 {[%clk 0:00:09]}  Bg2 {[%clk 0:00:02]} 53. Ra7+ {[%clk 0:00:08]}  Kd8 {[%clk 0:00:02]} 54. Rxa4 {[%clk 0:00:00]}  Rc6 {[%clk 0:00:03]} 0-1


[Site "https://www.chess.com"]

[Event "Titled Tuesday Blitz July 4 Early 2023"]
[White "Hoffmann, Asa"]
[Black "Vovk, Orest"]
[WhiteFideId "2001470"]
[BlackFideId "14113490"]
[WhiteElo "2427"]
[BlackElo "2605"]
[Result "0-1"]
[Round "3"]
[TimeControl "180+2"]
[Date "2023.07.04"]
[WhiteClock "0:00:28"]
[BlackClock "0:00:16"]
[Board "120"]

1. d4 {[%clk 0:02:54]}  h6 {[%clk 0:02:58]} 2. e4 {[%clk 0:02:54]}  g5 {[%clk 0:02:59]} 3. h4 {[%clk 0:02:53]}  g4 {[%clk 0:02:57]} 4. Qxg4 {[%clk 0:02:51]}  d5 {[%clk 0:02:57]} 5. Qf3 {[%clk 0:02:44]}  dxe4 {[%clk 0:02:58]} 6. Qxe4 {[%clk 0:02:43]}  Nf6 {[%clk 0:02:59]} 7. Qd3 {[%clk 0:02:41]}  Nc6 {[%clk 0:03:00]} 8. c3 {[%clk 0:02:41]}  Rg8 {[%clk 0:02:59]} 9. Nf3 {[%clk 0:02:40]}  Qd5 {[%clk 0:02:59]} 10. Be3 {[%clk 0:02:35]}  Bf5 {[%clk 0:02:58]} 11. Qe2 {[%clk 0:02:28]}  O-O-O {[%clk 0:02:57]} 12. Nbd2 {[%clk 0:02:27]}  Bg4 {[%clk 0:02:55]} 13. Qc4 {[%clk 0:02:26]}  Qh5 {[%clk 0:02:55]} 14. Be2 {[%clk 0:02:23]}  e5 {[%clk 0:02:55]} 15. Nxe5 {[%clk 0:02:12]}  Nxe5 {[%clk 0:02:54]} 16. dxe5 {[%clk 0:02:10]}  Qxe5 {[%clk 0:02:53]} 17. O-O-O {[%clk 0:01:54]}  Bxe2 {[%clk 0:02:51]} 18. Qxe2 {[%clk 0:01:53]}  Rxg2 {[%clk 0:02:50]} 19. Qf3 {[%clk 0:01:48]}  Rg4 {[%clk 0:02:32]} 20. Nb3 {[%clk 0:01:43]}  Rxd1+ {[%clk 0:02:26]} 21. Rxd1 {[%clk 0:01:42]}  Bd6 {[%clk 0:02:20]} 22. Rd4 {[%clk 0:01:22]}  Rxd4 {[%clk 0:02:08]} 23. Nxd4 {[%clk 0:01:20]}  h5 {[%clk 0:01:36]} 24. Qf5+ {[%clk 0:01:14]}  Qxf5 {[%clk 0:01:34]} 25. Nxf5 {[%clk 0:01:14]}  a6 {[%clk 0:01:21]} 26. Kd2 {[%clk 0:01:14]}  Kd7 {[%clk 0:01:20]} 27. Kd3 {[%clk 0:01:14]}  Ng4 {[%clk 0:01:16]} 28. Ke4 {[%clk 0:01:10]}  Be7 {[%clk 0:01:09]} 29. Kf3 {[%clk 0:01:05]}  Ne5+ {[%clk 0:00:57]} 30. Kg3 {[%clk 0:01:02]}  Nc4 {[%clk 0:00:58]} 31. Bc1 {[%clk 0:01:01]}  Bd6+ {[%clk 0:00:49]} 32. Kg2 {[%clk 0:00:59]}  Be7 {[%clk 0:00:42]} 33. Kg3 {[%clk 0:00:57]}  Ne5 {[%clk 0:00:41]} 34. Bf4 {[%clk 0:00:48]}  Nd3 {[%clk 0:00:39]} 35. b3 {[%clk 0:00:48]}  c5 {[%clk 0:00:33]} 36. Be3 {[%clk 0:00:42]}  b5 {[%clk 0:00:29]} 37. Ng7 {[%clk 0:00:42]}  Bf6 {[%clk 0:00:24]} 38. Nxh5 {[%clk 0:00:40]}  Bxc3 {[%clk 0:00:24]} 39. Nf4 {[%clk 0:00:39]}  c4 {[%clk 0:00:20]} 40. bxc4 {[%clk 0:00:33]}  bxc4 {[%clk 0:00:21]} 41. Ne2 {[%clk 0:00:32]}  Be5+ {[%clk 0:00:20]} 42. Kf3 {[%clk 0:00:31]}  Ke6 {[%clk 0:00:17]} 43. Ke4 {[%clk 0:00:30]}  f5+ {[%clk 0:00:16]} 44. Kf3 {[%clk 0:00:28]}  Ne1# {[%clk 0:00:16]} 0-1


[Site "https://www.chess.com"]

[Event "Titled Tuesday Blitz July 4 Early 2023"]
[White "Ncatt"]
[Black "Gunduz, Umut Erdem"]
[BlackFideId "6381383"]
[WhiteElo "2424"]
[BlackElo "2600"]
[Result "0-1"]
[Round "3"]
[TimeControl "180+2"]
[Date "2023.07.04"]
[WhiteClock "0:01:26"]
[BlackClock "0:01:50"]
[Board "123"]

1. e4 {[%clk 0:03:00]}  c5 {[%clk 0:02:59]} 2. Nf3 {[%clk 0:03:00]}  d6 {[%clk 0:03:00]} 3. d4 {[%clk 0:03:00]}  cxd4 {[%clk 0:03:01]} 4. Nxd4 {[%clk 0:03:00]}  Nf6 {[%clk 0:03:01]} 5. Nc3 {[%clk 0:03:00]}  a6 {[%clk 0:03:00]} 6. Be3 {[%clk 0:03:01]}  e5 {[%clk 0:02:59]} 7. Nb3 {[%clk 0:02:59]}  Be6 {[%clk 0:02:58]} 8. f3 {[%clk 0:02:59]}  Nbd7 {[%clk 0:02:57]} 9. Qd2 {[%clk 0:02:59]}  h5 {[%clk 0:02:55]} 10. O-O-O {[%clk 0:02:59]}  Rc8 {[%clk 0:02:51]} 11. Kb1 {[%clk 0:02:59]}  Be7 {[%clk 0:02:48]} 12. Rg1 {[%clk 0:02:57]}  b5 {[%clk 0:02:43]} 13. Nd5 {[%clk 0:02:56]}  Bxd5 {[%clk 0:02:39]} 14. exd5 {[%clk 0:02:57]}  Nb6 {[%clk 0:02:40]} 15. g4 {[%clk 0:02:57]}  hxg4 {[%clk 0:02:33]} 16. fxg4 {[%clk 0:02:57]}  Nbxd5 {[%clk 0:02:29]} 17. g5 {[%clk 0:02:53]}  Nxe3 {[%clk 0:02:23]} 18. gxf6 {[%clk 0:02:54]}  Nxf1 {[%clk 0:02:22]} 19. Rdxf1 {[%clk 0:02:40]}  Bxf6 {[%clk 0:02:19]} 20. Rg4 {[%clk 0:02:34]}  d5 {[%clk 0:02:17]} 21. a4 {[%clk 0:02:33]}  Rc4 {[%clk 0:02:12]} 22. Rfg1 {[%clk 0:02:25]}  Rxg4 {[%clk 0:02:06]} 23. Rxg4 {[%clk 0:02:25]}  Qd7 {[%clk 0:02:06]} 24. Rb4 {[%clk 0:02:14]}  Be7 {[%clk 0:02:02]} 25. axb5 {[%clk 0:02:04]}  Bxb4 {[%clk 0:02:00]} 26. Qxb4 {[%clk 0:02:04]}  axb5 {[%clk 0:02:00]} 27. h4 {[%clk 0:01:54]}  f6 {[%clk 0:01:59]} 28. Qc5 {[%clk 0:01:44]}  Kf7 {[%clk 0:01:58]} 29. Qf2 {[%clk 0:01:41]}  d4 {[%clk 0:01:54]} 30. Qf1 {[%clk 0:01:37]}  Qd5 {[%clk 0:01:53]} 31. Qe1 {[%clk 0:01:34]}  d3 {[%clk 0:01:51]} 32. Nc1 {[%clk 0:01:26]}  d2 {[%clk 0:01:50]} 0-1


[Site "https://www.chess.com"]

[Event "Titled Tuesday Blitz July 4 Early 2023"]
[White "Marn, Jan"]
[Black "ATM622"]
[WhiteFideId "14619245"]
[WhiteElo "2422"]
[BlackElo "2590"]
[Result "1-0"]
[Round "3"]
[TimeControl "180+2"]
[Date "2023.07.04"]
[WhiteClock "0:01:23"]
[BlackClock "0:01:34"]
[Board "125"]

1. e4 {[%clk 0:03:00]}  c6 {[%clk 0:02:58]} 2. Nc3 {[%clk 0:02:56]}  d5 {[%clk 0:02:58]} 3. Nf3 {[%clk 0:02:57]}  dxe4 {[%clk 0:02:58]} 4. Nxe4 {[%clk 0:02:57]}  Nf6 {[%clk 0:02:59]} 5. Nxf6+ {[%clk 0:02:53]}  exf6 {[%clk 0:02:51]} 6. d4 {[%clk 0:02:52]}  Bd6 {[%clk 0:02:51]} 7. Qe2+ {[%clk 0:02:52]}  Qe7 {[%clk 0:02:50]} 8. Qxe7+ {[%clk 0:02:52]}  Bxe7 {[%clk 0:02:51]} 9. Bd3 {[%clk 0:02:52]}  O-O {[%clk 0:02:51]} 10. O-O {[%clk 0:02:51]}  Bg4 {[%clk 0:02:50]} 11. Re1 {[%clk 0:02:48]}  Bd6 {[%clk 0:02:50]} 12. Nd2 {[%clk 0:02:47]}  Nd7 {[%clk 0:02:49]} 13. h3 {[%clk 0:02:38]}  Bh5 {[%clk 0:02:48]} 14. Nc4 {[%clk 0:02:37]}  Bc7 {[%clk 0:02:39]} 15. Re7 {[%clk 0:02:08]}  Rad8 {[%clk 0:02:15]} 16. Bd2 {[%clk 0:02:04]}  Rfe8 {[%clk 0:02:15]} 17. Rae1 {[%clk 0:02:04]}  Rxe7 {[%clk 0:02:06]} 18. Rxe7 {[%clk 0:02:04]}  b5 {[%clk 0:02:06]} 19. Na5 {[%clk 0:02:00]}  Bxa5 {[%clk 0:01:56]} 20. Bxa5 {[%clk 0:02:01]}  Nb6 {[%clk 0:01:56]} 21. Rxa7 {[%clk 0:01:59]}  Bg6 {[%clk 0:01:49]} 22. Bxb6 {[%clk 0:01:57]}  Re8 {[%clk 0:01:48]} 23. Bxg6 {[%clk 0:01:50]}  fxg6 {[%clk 0:01:47]} 24. Rc7 {[%clk 0:01:50]}  Re1+ {[%clk 0:01:47]} 25. Kh2 {[%clk 0:01:50]}  Re6 {[%clk 0:01:47]} 26. Bc5 {[%clk 0:01:48]}  h5 {[%clk 0:01:47]} 27. Rc8+ {[%clk 0:01:47]}  Kh7 {[%clk 0:01:45]} 28. b3 {[%clk 0:01:46]}  Re2 {[%clk 0:01:44]} 29. Rxc6 {[%clk 0:01:45]}  Rxc2 {[%clk 0:01:44]} 30. a4 {[%clk 0:01:45]}  bxa4 {[%clk 0:01:44]} 31. bxa4 {[%clk 0:01:46]}  Ra2 {[%clk 0:01:45]} 32. Ra6 {[%clk 0:01:46]}  g5 {[%clk 0:01:44]} 33. Ra8 {[%clk 0:01:43]}  f5 {[%clk 0:01:44]} 34. a5 {[%clk 0:01:42]}  f4 {[%clk 0:01:45]} 35. f3 {[%clk 0:01:40]}  g4 {[%clk 0:01:39]} 36. hxg4 {[%clk 0:01:40]}  hxg4 {[%clk 0:01:39]} 37. fxg4 {[%clk 0:01:38]}  f3 {[%clk 0:01:39]} 38. Kg1 {[%clk 0:01:25]}  Rxg2+ {[%clk 0:01:38]} 39. Kf1 {[%clk 0:01:25]}  Rxg4 {[%clk 0:01:38]} 40. a6 {[%clk 0:01:26]}  Rg2 {[%clk 0:01:37]} 41. a7 {[%clk 0:01:26]}  Ra2 {[%clk 0:01:37]} 42. Rf8 {[%clk 0:01:26]}  g5 {[%clk 0:01:34]} 43. a8=Q {[%clk 0:01:24]}  Rxa8 {[%clk 0:01:32]} 44. Rxa8 {[%clk 0:01:25]}  g4 {[%clk 0:01:33]} 45. Kf2 {[%clk 0:01:25]}  Kg6 {[%clk 0:01:33]} 46. Kg3 {[%clk 0:01:24]}  Kf5 {[%clk 0:01:34]} 47. Rf8+ {[%clk 0:01:24]}  Ke6 {[%clk 0:01:35]} 48. Kxg4 {[%clk 0:01:23]}  f2 {[%clk 0:01:34]} 49. Rxf2 {[%clk 0:01:23]} 1-0


[Site "https://www.chess.com"]

[Event "Titled Tuesday Blitz July 4 Early 2023"]
[White "Onufrienko, Vladislav"]
[Black "Ezat, Mohamed"]
[WhiteFideId "13804332"]
[BlackFideId "10600906"]
[WhiteElo "2401"]
[BlackElo "2584"]
[Result "0-1"]
[Round "3"]
[TimeControl "180+2"]
[Date "2023.07.04"]
[WhiteClock "0:01:10"]
[BlackClock "0:01:04"]
[Board "128"]

1. e4 {[%clk 0:03:00]}  c6 {[%clk 0:02:58]} 2. d4 {[%clk 0:02:59]}  d5 {[%clk 0:02:53]} 3. e5 {[%clk 0:02:58]}  c5 {[%clk 0:02:52]} 4. dxc5 {[%clk 0:02:57]}  Nc6 {[%clk 0:02:51]} 5. Nf3 {[%clk 0:02:57]}  Bg4 {[%clk 0:02:50]} 6. Bb5 {[%clk 0:02:56]}  Qa5+ {[%clk 0:02:46]} 7. Nc3 {[%clk 0:02:55]}  e6 {[%clk 0:02:46]} 8. a3 {[%clk 0:02:48]}  Bxc5 {[%clk 0:02:44]} 9. b4 {[%clk 0:02:45]}  Bxb4 {[%clk 0:02:40]} 10. axb4 {[%clk 0:02:46]}  Qxa1 {[%clk 0:02:39]} 11. Qd2 {[%clk 0:02:26]}  Bxf3 {[%clk 0:02:33]} 12. gxf3 {[%clk 0:02:27]}  Ne7 {[%clk 0:02:20]} 13. O-O {[%clk 0:02:21]}  O-O {[%clk 0:02:15]} 14. f4 {[%clk 0:02:21]}  Nf5 {[%clk 0:02:12]} 15. Na4 {[%clk 0:02:14]}  Qd4 {[%clk 0:02:09]} 16. Nc5 {[%clk 0:02:10]}  Nxb4 {[%clk 0:01:50]} 17. Nd3 {[%clk 0:02:00]}  Nxd3 {[%clk 0:01:38]} 18. Bxd3 {[%clk 0:02:01]}  Rfc8 {[%clk 0:01:29]} 19. Ba3 {[%clk 0:01:51]}  Nh4 {[%clk 0:01:20]} 20. Kh1 {[%clk 0:01:48]}  g6 {[%clk 0:01:12]} 21. Be7 {[%clk 0:01:39]}  Nf5 {[%clk 0:01:09]} 22. Bf6 {[%clk 0:01:38]}  a5 {[%clk 0:01:06]} 23. Qc1 {[%clk 0:01:18]}  Qxd3 {[%clk 0:01:04]} 24. cxd3 {[%clk 0:01:17]}  Rxc1 {[%clk 0:01:05]} 25. Rxc1 {[%clk 0:01:18]}  a4 {[%clk 0:01:05]} 26. Kg2 {[%clk 0:01:15]}  a3 {[%clk 0:01:04]} 27. Kf3 {[%clk 0:01:13]}  a2 {[%clk 0:01:04]} 28. Ra1 {[%clk 0:01:13]}  Nd4+ {[%clk 0:01:04]} 29. Ke3 {[%clk 0:01:10]}  Nc2+ {[%clk 0:01:04]} 0-1


[Site "https://www.chess.com"]

[Event "Titled Tuesday Blitz July 4 Early 2023"]
[White "Ince, Taylan Ruzgar"]
[Black "Buscar, Michael"]
[WhiteFideId "44513089"]
[BlackFideId "2603616"]
[WhiteElo "2583"]
[BlackElo "2398"]
[Result "1-0"]
[Round "3"]
[TimeControl "180+2"]
[Date "2023.07.04"]
[WhiteClock "0:02:22"]
[BlackClock "0:01:58"]
[Board "129"]

1. b3 {[%clk 0:03:00]}  d5 {[%clk 0:02:57]} 2. Bb2 {[%clk 0:03:01]}  c5 {[%clk 0:02:57]} 3. e3 {[%clk 0:03:00]}  Nc6 {[%clk 0:02:57]} 4. Bb5 {[%clk 0:03:00]}  Qc7 {[%clk 0:02:55]} 5. f4 {[%clk 0:02:59]}  a6 {[%clk 0:02:45]} 6. Bxc6+ {[%clk 0:02:59]}  Qxc6 {[%clk 0:02:45]} 7. Nf3 {[%clk 0:03:00]}  Bg4 {[%clk 0:02:44]} 8. O-O {[%clk 0:02:59]}  Nf6 {[%clk 0:02:42]} 9. Qe1 {[%clk 0:02:57]}  g6 {[%clk 0:02:34]} 10. Ne5 {[%clk 0:02:57]}  Qc8 {[%clk 0:02:31]} 11. c4 {[%clk 0:02:48]}  dxc4 {[%clk 0:02:24]} 12. bxc4 {[%clk 0:02:45]}  Bg7 {[%clk 0:02:24]} 13. h3 {[%clk 0:02:41]}  Bf5 {[%clk 0:02:12]} 14. Nc3 {[%clk 0:02:38]}  Nd7 {[%clk 0:02:06]} 15. e4 {[%clk 0:02:25]}  Nxe5 {[%clk 0:02:03]} 16. fxe5 {[%clk 0:02:22]}  Be6 {[%clk 0:02:02]} 17. Nd5 {[%clk 0:02:22]}  O-O {[%clk 0:01:58]} 18. Nxe7+ {[%clk 0:02:22]} 1-0


[Site "https://www.chess.com"]

[Event "Titled Tuesday Blitz July 4 Early 2023"]
[White "Pinheiro, Iung Alicio de O."]
[Black "Slavin, Alexey"]
[WhiteFideId "2104350"]
[BlackFideId "24104388"]
[WhiteElo "2581"]
[BlackElo "2394"]
[Result "1-0"]
[Round "3"]
[TimeControl "180+2"]
[Date "2023.07.04"]
[WhiteClock "0:00:12"]
[BlackClock "0:00:00"]
[Board "130"]

1. e4 {[%clk 0:03:00]}  Nc6 {[%clk 0:02:58]} 2. Nf3 {[%clk 0:03:00]}  d6 {[%clk 0:02:58]} 3. h3 {[%clk 0:02:54]}  Nf6 {[%clk 0:02:58]} 4. Nc3 {[%clk 0:02:53]}  e5 {[%clk 0:02:58]} 5. Bb5 {[%clk 0:02:40]}  Bd7 {[%clk 0:02:58]} 6. d4 {[%clk 0:02:34]}  exd4 {[%clk 0:02:55]} 7. Nxd4 {[%clk 0:02:35]}  Be7 {[%clk 0:02:50]} 8. Bxc6 {[%clk 0:02:32]}  bxc6 {[%clk 0:02:50]} 9. Bf4 {[%clk 0:02:27]}  c5 {[%clk 0:02:48]} 10. Nde2 {[%clk 0:02:23]}  Rb8 {[%clk 0:02:46]} 11. b3 {[%clk 0:02:20]}  O-O {[%clk 0:02:22]} 12. e5 {[%clk 0:02:10]}  Ne8 {[%clk 0:02:03]} 13. O-O {[%clk 0:02:06]}  Bf5 {[%clk 0:01:54]} 14. Ng3 {[%clk 0:01:59]}  Bg6 {[%clk 0:01:54]} 15. exd6 {[%clk 0:01:44]}  cxd6 {[%clk 0:01:53]} 16. Nd5 {[%clk 0:01:39]}  Bg5 {[%clk 0:01:53]} 17. c4 {[%clk 0:01:24]}  Bxf4 {[%clk 0:01:50]} 18. Nxf4 {[%clk 0:01:24]}  Nf6 {[%clk 0:01:47]} 19. Qf3 {[%clk 0:01:22]}  Rb6 {[%clk 0:01:31]} 20. Rad1 {[%clk 0:01:19]}  Qb8 {[%clk 0:01:23]} 21. Nd5 {[%clk 0:01:14]}  Nxd5 {[%clk 0:01:21]} 22. Rxd5 {[%clk 0:01:15]}  a5 {[%clk 0:01:19]} 23. Rfd1 {[%clk 0:01:10]}  a4 {[%clk 0:01:18]} 24. bxa4 {[%clk 0:01:06]}  Ra6 {[%clk 0:00:58]} 25. Qf4 {[%clk 0:00:53]}  Rxa4 {[%clk 0:00:54]} 26. Rxd6 {[%clk 0:00:41]}  Rxa2 {[%clk 0:00:54]} 27. Qe5 {[%clk 0:00:39]}  Qc8 {[%clk 0:00:25]} 28. h4 {[%clk 0:00:31]}  h6 {[%clk 0:00:23]} 29. h5 {[%clk 0:00:29]}  Bh7 {[%clk 0:00:21]} 30. Qe7 {[%clk 0:00:29]}  Ra8 {[%clk 0:00:15]} 31. Rd7 {[%clk 0:00:25]}  Qe8 {[%clk 0:00:13]} 32. Qxc5 {[%clk 0:00:23]}  Qe6 {[%clk 0:00:11]} 33. Qd5 {[%clk 0:00:19]}  Qe8 {[%clk 0:00:08]} 34. c5 {[%clk 0:00:18]}  Rc8 {[%clk 0:00:08]} 35. c6 {[%clk 0:00:18]}  Qe6 {[%clk 0:00:04]} 36. Qxe6 {[%clk 0:00:17]}  fxe6 {[%clk 0:00:04]} 37. c7 {[%clk 0:00:18]}  Bc2 {[%clk 0:00:03]} 38. R1d2 {[%clk 0:00:18]}  Ba4 {[%clk 0:00:03]} 39. Re7 {[%clk 0:00:16]}  Rfe8 {[%clk 0:00:03]} 40. Rxe8+ {[%clk 0:00:15]}  Bxe8 {[%clk 0:00:02]} 41. Rd8 {[%clk 0:00:15]}  Rxc7 {[%clk 0:00:03]} 42. Rxe8+ {[%clk 0:00:15]}  Kf7 {[%clk 0:00:04]} 43. Ra8 {[%clk 0:00:15]}  Rc1+ {[%clk 0:00:04]} 44. Kh2 {[%clk 0:00:15]}  Rc2 {[%clk 0:00:05]} 45. f3 {[%clk 0:00:15]}  Kf6 {[%clk 0:00:05]} 46. Ne4+ {[%clk 0:00:15]}  Ke5 {[%clk 0:00:04]} 47. Rg8 {[%clk 0:00:14]}  Rc7 {[%clk 0:00:03]} 48. Kg3 {[%clk 0:00:15]}  Re7 {[%clk 0:00:02]} 49. Kg4 {[%clk 0:00:15]}  Rf7 {[%clk 0:00:02]} 50. g3 {[%clk 0:00:14]}  Re7 {[%clk 0:00:02]} 51. Nf2 {[%clk 0:00:14]}  Rf7 {[%clk 0:00:01]} 52. f4+ {[%clk 0:00:14]}  Kd4 {[%clk 0:00:02]} 53. Kf3 {[%clk 0:00:12]}  e5 {[%clk 0:00:02]} 54. Ng4 {[%clk 0:00:12]}  exf4 {[%clk 0:00:02]} 55. gxf4 {[%clk 0:00:12]}  Kd5 {[%clk 0:00:02]} 56. Ne5 {[%clk 0:00:12]}  Ra7 {[%clk 0:00:02]} 57. Kg4 {[%clk 0:00:13]}  Ke6 {[%clk 0:00:00]} 58. Rf8 {[%clk 0:00:12]} 1-0


[Site "https://www.chess.com"]

[Event "Titled Tuesday Blitz July 4 Early 2023"]
[White "Philippe, Guillaume"]
[Black "Terletsky, Oleg"]
[WhiteFideId "36048763"]
[BlackFideId "14116774"]
[WhiteElo "2394"]
[BlackElo "2579"]
[Result "1-0"]
[Round "3"]
[TimeControl "180+2"]
[Date "2023.07.04"]
[WhiteClock "0:00:42"]
[BlackClock "0:00:09"]
[Board "131"]

1. e4 {[%clk 0:03:00]}  e5 {[%clk 0:02:59]} 2. Nf3 {[%clk 0:03:01]}  Nc6 {[%clk 0:02:59]} 3. Bb5 {[%clk 0:03:01]}  a6 {[%clk 0:02:59]} 4. Ba4 {[%clk 0:03:01]}  Nf6 {[%clk 0:02:59]} 5. Nc3 {[%clk 0:03:01]}  b5 {[%clk 0:02:50]} 6. Bb3 {[%clk 0:03:01]}  Bc5 {[%clk 0:02:51]} 7. a4 {[%clk 0:03:00]}  b4 {[%clk 0:02:49]} 8. Nd5 {[%clk 0:03:01]}  d6 {[%clk 0:02:22]} 9. d3 {[%clk 0:02:33]}  h6 {[%clk 0:02:19]} 10. h3 {[%clk 0:02:32]}  Na5 {[%clk 0:02:13]} 11. Ba2 {[%clk 0:02:15]}  c6 {[%clk 0:02:09]} 12. Ne3 {[%clk 0:02:09]}  Be6 {[%clk 0:02:00]} 13. Bxe6 {[%clk 0:02:05]}  fxe6 {[%clk 0:02:01]} 14. Bd2 {[%clk 0:02:03]}  O-O {[%clk 0:01:54]} 15. O-O {[%clk 0:01:53]}  Ra7 {[%clk 0:01:37]} 16. Nh2 {[%clk 0:01:53]}  Raf7 {[%clk 0:01:31]} 17. Qe2 {[%clk 0:01:49]}  Nh7 {[%clk 0:01:07]} 18. Rab1 {[%clk 0:01:27]}  Nb7 {[%clk 0:01:02]} 19. c3 {[%clk 0:01:26]}  a5 {[%clk 0:01:02]} 20. Rbd1 {[%clk 0:01:24]}  Qh4 {[%clk 0:00:56]} 21. Qg4 {[%clk 0:01:14]}  Qxg4 {[%clk 0:00:46]} 22. Nhxg4 {[%clk 0:01:14]}  Nf6 {[%clk 0:00:23]} 23. Nxf6+ {[%clk 0:01:07]}  Rxf6 {[%clk 0:00:23]} 24. Bc1 {[%clk 0:01:07]}  h5 {[%clk 0:00:20]} 25. d4 {[%clk 0:01:06]}  exd4 {[%clk 0:00:18]} 26. cxd4 {[%clk 0:01:06]}  Bb6 {[%clk 0:00:17]} 27. Nc4 {[%clk 0:00:58]}  Bc7 {[%clk 0:00:16]} 28. Bg5 {[%clk 0:00:46]}  Rg6 {[%clk 0:00:16]} 29. f4 {[%clk 0:00:45]}  d5 {[%clk 0:00:14]} 30. exd5 {[%clk 0:00:43]}  exd5 {[%clk 0:00:13]} 31. Ne5 {[%clk 0:00:43]}  Nd6 {[%clk 0:00:09]} 32. Nxg6 {[%clk 0:00:42]} 1-0


[Site "https://www.chess.com"]